bitfinex-derivatives/quotes_BTCF0:USTF0_20250722
["timestamp","ask_amount","ask_price","bid_price","bid_amount"]
[1753184707144,0.01696732,119160.0,119150.0,1.35108663]
[1753184707344,0.83856732,119160.0,119150.0,1.35108663]
[1753184708045,0.83856732,119160.0,119150.0,1.63051148]
[1753184708545,0.83856732,119160.0,119150.0,1.35108663]
[1753184708740,0.83856732,119160.0,119150.0,1.63051148]
[1753184709946,0.83856732,119160.0,119150.0,1.35108663]
[1753184710146,0.83856732,119160.0,119150.0,1.63051148]
[1753184710945,0.83856732,119160.0,119150.0,1.96051148]
[1753184711950,0.83856732,119160.0,119150.0,1.68108663]
[1753184712448,0.83856732,119160.0,119150.0,2.25691148]
[1753184713045,0.83856732,119160.0,119150.0,2.21173025]
[1753184713350,0.83856732,119160.0,119150.0,2.25691148]
[1753184713743,0.83856732,119160.0,119150.0,1.97748663]
[1753184713949,0.83856732,119160.0,119150.0,2.25691148]
[1753184714346,0.83856732,119160.0,119150.0,1.97748663]
[1753184714646,0.83856732,119160.0,119150.0,2.25691148]
[1753184715050,0.83856732,119160.0,119150.0,2.21173025]
[1753184716452,0.83856732,119160.0,119150.0,2.25688834]
[1753184717654,0.83856732,119160.0,119150.0,1.97746349]
[1753184717849,0.83856732,119160.0,119150.0,2.25688834]
[1753184719151,0.83856732,119160.0,119150.0,2.186675]
[1753184719857,0.83856732,119160.0,119150.0,2.39588651]
[1753184721555,0.8216,119160.0,119150.0,2.39588651]
[1753184722254,0.8216,119160.0,119150.0,2.41428753]
[1753184722455,0.8216,119160.0,119150.0,2.20507602]
[1753184722854,0.8216,119160.0,119150.0,2.41428753]
[1753184723057,0.8216,119160.0,119150.0,2.36912944]
[1753184723457,0.8216,119160.0,119150.0,2.15991793]
[1753184724757,0.8216,119160.0,119150.0,1.95070642]
[1753184724949,0.8216,119160.0,119150.0,2.15991793]
[1753184725147,0.8216,119160.0,119150.0,2.22015957]
[1753184728960,0.8216,119160.0,119150.0,2.42937108]
[1753184729259,0.8216,119160.0,119150.0,2.36912944]
[1753184730661,0.8216,119160.0,119150.0,2.15991793]
[1753184732360,0.86129,119160.0,119150.0,2.15991793]
[1753184733960,0.8216,119160.0,119150.0,2.15991793]
[1753184735063,0.8216,119160.0,119150.0,2.36912944]
[1753184735253,0.8216,119160.0,119150.0,2.15991793]
[1753184736664,0.8216,119160.0,119150.0,1.95070642]
[1753184736862,0.8216,119160.0,119150.0,2.15991793]
[1753184738963,0.86129,119160.0,119150.0,2.23521998]
[1753184739164,0.86129,119160.0,119150.0,2.15991793]
[1753184739664,0.86129,119160.0,119150.0,2.23521998]
[1753184739963,0.86129,119160.0,119150.0,2.15991793]
[1753184740961,0.86129,119160.0,119150.0,1.95070642]
[1753184741165,0.86129,119160.0,119150.0,2.15991793]
[1753184741361,0.86129,119160.0,119150.0,2.23521998]
[1753184741566,0.86129,119160.0,119150.0,1.95070642]
[1753184741767,0.86129,119160.0,119150.0,2.15991793]
[1753184742267,0.86129,119160.0,119150.0,2.23521998]
[1753184745069,0.86129,119160.0,119150.0,2.23421998]
[1753184747163,0.86129,119160.0,119150.0,1.64917998]
[1753184747469,1.00354,119160.0,119150.0,2.23417998]
[1753184747863,0.95159,119160.0,119150.0,2.23417998]
[1753184748366,0.91464,119160.0,119150.0,2.23417998]
[1753184748570,1.12385151,119160.0,119150.0,2.23417998]
[1753184748865,0.91464,119160.0,119150.0,2.23417998]
[1753184749269,0.91464,119160.0,119150.0,2.02496847]
[1753184749468,0.91464,119160.0,119150.0,2.23417998]
[1753184749769,0.91464,119160.0,119150.0,2.02496847]
[1753184749969,0.91464,119160.0,119150.0,2.23417998]
[1753184750268,0.91464,119160.0,119150.0,2.02496847]
[1753184750571,0.91464,119160.0,119150.0,2.23417998]
[1753184752368,0.91464,119160.0,119150.0,2.02496847]
[1753184752568,0.91464,119160.0,119150.0,2.23417998]
[1753184752768,1.12385151,119160.0,119150.0,2.23417998]
[1753184752968,0.91464,119160.0,119150.0,2.23417998]
[1753184753566,0.91464,119160.0,119150.0,2.02496847]
[1753184753874,1.55276432,119160.0,119150.0,0.29149642]
[1753184754168,1.1343413,119160.0,119150.0,1.27170642]
[1753184754360,1.55276432,119160.0,119150.0,1.27170642]
[1753184754564,1.55276432,119160.0,119150.0,1.52274793]
[1753184755168,1.55276432,119160.0,119150.0,0.93786793]
[1753184755371,1.55276432,119160.0,119150.0,1.52274793]
[1753184755575,1.55276432,119160.0,119150.0,1.31353642]
[1753184755872,1.55276432,119160.0,119150.0,1.52274793]
[1753184756668,1.55276432,119160.0,119150.0,1.31353642]
[1753184756974,1.76197583,119160.0,119150.0,0.07029857]
[1753184757178,1.76197583,119160.0,119150.0,0.64005194]
[1753184757179,1.55276432,119160.0,119150.0,0.64005194]
[1753184757473,1.55276432,119160.0,119150.0,0.80781734]
[1753184758470,1.55476432,119160.0,119150.0,0.80781734]
[1753184758672,1.55476432,119160.0,119150.0,0.83794841]
[1753184759773,1.34555281,119160.0,119150.0,1.58772992]
[1753184759973,1.34555281,119160.0,119150.0,1.57595941]
[1753184760375,1.29360281,119160.0,119150.0,1.57595941]
[1753184760671,1.29360281,119160.0,119150.0,1.94595941]
[1753184760672,0.86329,119160.0,119150.0,1.94595941]
[1753184760876,0.8236,119160.0,119150.0,1.94595941]
[1753184761076,0.8236,119160.0,119150.0,1.90074747]
[1753184761882,1.23847281,119160.0,119150.0,1.90074747]
[1753184762075,1.23847281,119160.0,119150.0,1.9459072]
[1753184762076,1.0456613,119160.0,119150.0,1.9459072]
[1753184762276,1.25387281,119160.0,119150.0,1.90074747]
[1753184762576,1.30582281,119160.0,119150.0,1.90074747]
[1753184762978,1.30582281,119160.0,119150.0,1.97601018]
[1753184764281,1.0966113,119160.0,119150.0,1.97601018]
[1753184764782,1.30582281,119160.0,119150.0,1.97601018]
[1753184766384,1.0966113,119160.0,119150.0,1.97601018]
[1753184767679,0.95743,119160.0,119150.0,1.97601018]
[1753184768174,0.90548,119160.0,119150.0,1.97601018]
[1753184769083,1.11469151,119160.0,119150.0,1.97601018]
[1753184769274,0.91386,119160.0,119150.0,1.97601018]
[1753184769478,0.91386,119160.0,119150.0,1.93085255]
[1753184770383,0.91386,119160.0,119150.0,1.97601018]
[1753184770784,1.12307151,119160.0,119150.0,1.97601018]
[1753184771082,1.17823151,119160.0,119150.0,1.93085255]
[1753184771576,0.96902,119160.0,119150.0,1.97601018]
[1753184771773,0.91386,119160.0,119150.0,2.27241018]
[1753184772986,0.91386,119160.0,119150.0,2.2423051]
[1753184774385,0.91386,119160.0,119150.0,2.19714747]
[1753184776385,0.89746,119160.0,119150.0,2.19714747]
[1753184776580,0.88908,119160.0,119150.0,2.40635898]
[1753184776787,1.00196,119160.0,119150.0,1.81686747]
[1753184776982,1.00196,119160.0,119150.0,2.18686747]
[1753184777589,1.21117151,119160.0,119150.0,2.18686747]
[1753184777889,1.00196,119160.0,119150.0,2.18686747]
[1753184781882,0.9468,119160.0,119150.0,2.18686747]
[1753184782089,0.9468,119160.0,119150.0,2.24716604]
[1753184782291,1.00196,119160.0,119150.0,2.24716604]
[1753184782785,0.9468,119160.0,119150.0,2.24716604]
[1753184783689,0.9468,119160.0,119150.0,2.03795453]
[1753184783890,0.8216,119160.0,119150.0,2.39607898]
[1753184784088,0.8216,119160.0,119150.0,2.47138103]
[1753184784291,0.85982,119160.0,119150.0,2.47138103]
[1753184784487,0.9021,119160.0,119150.0,2.47138103]
[1753184785689,0.9021,119160.0,119150.0,2.39607898]
[1753184786094,0.9021,119160.0,119150.0,2.18686747]
[1753184786388,0.9021,119160.0,119150.0,2.39607898]
[1753184786790,0.9021,119160.0,119150.0,2.45635283]
[1753184788290,0.9021,119160.0,119150.0,2.39607898]
[1753184788491,0.9021,119160.0,119150.0,2.4563491]
[1753184788691,0.9021,119160.0,119150.0,1.8717891]
[1753184788990,0.94611,119160.0,119150.0,2.4562291]
[1753184789191,0.94611,119160.0,119150.0,2.18674747]
[1753184790390,1.21048151,119160.0,119150.0,2.03781092]
[1753184790785,1.21048151,119160.0,119150.0,2.24702243]
[1753184790988,1.00127,119160.0,119150.0,2.24702243]
[1753184795395,1.21048151,119160.0,119150.0,2.24702243]
[1753184797997,1.00127,119160.0,119150.0,2.24702243]
[1753184802502,1.00127,119160.0,119150.0,2.18674747]
[1753184804006,1.00127,119160.0,119150.0,2.24701694]
[1753184804405,0.90989,119160.0,119150.0,2.24701694]
[1753184805410,0.94607,119160.0,119150.0,2.24701694]
[1753184807910,0.94607,119160.0,119150.0,2.03780543]
[1753184808115,0.94607,119160.0,119150.0,2.24701694]
[1753184808411,0.90989,119160.0,119150.0,2.24701694]
[1753184808612,0.89343,119160.0,119150.0,2.24701694]
[1753184809115,0.90876,119160.0,119150.0,2.24701694]
[1753184809915,0.90876,119160.0,119150.0,2.45622845]
[1753184811017,0.8216,119160.0,119150.0,2.45622845]
[1753184811218,0.14213979,119160.0,119150.0,2.75623641]
[1753184811414,0.0003,119170.0,119160.0,0.1677514]
[1753184811614,0.0001,119170.0,119160.0,2.41866618]
[1753184811818,0.0001,119170.0,119160.0,2.30025112]
[1753184812621,0.0011,119170.0,119160.0,2.30025112]
[1753184813014,0.0011,119170.0,119160.0,2.36052059]
[1753184813215,0.0011,119170.0,119160.0,2.30025112]
[1753184813425,0.03993,119170.0,119160.0,2.36049045]
[1753184813620,0.03993,119170.0,119160.0,2.30025112]
[1753184813926,0.05526,119170.0,119160.0,2.30025112]
[1753184814223,0.05626,119170.0,119160.0,2.30025112]
[1753184814814,0.1768,119170.0,119160.0,2.30021112]
[1753184815016,0.1768,119170.0,119160.0,2.36045479]
[1753184815417,0.09072,119170.0,119160.0,2.36045479]
[1753184815616,0.09072,119170.0,119160.0,1.56700328]
[1753184815821,0.38601151,119170.0,119160.0,2.33656479]
[1753184816017,0.1768,119170.0,119160.0,2.36045479]
[1753184816219,0.55374881,119170.0,119160.0,0.73723785]
[1753184816425,0.55374881,119170.0,119160.0,2.07986087]
[1753184816625,0.55374881,119170.0,119160.0,2.10375087]
[1753184816826,0.1768,119170.0,119160.0,2.10375087]
[1753184817026,0.09072,119170.0,119160.0,2.16399454]
[1753184817229,0.0021,119170.0,119160.0,2.16399454]
[1753184818221,0.0021,119170.0,119160.0,2.37320605]
[1753184818518,0.0021,119170.0,119160.0,2.37315385]
[1753184818717,0.0402,119180.0,119170.0,0.1677373]
[1753184818917,0.03097556,119210.0,119180.0,0.14068]
[1753184819122,0.03097556,119210.0,119200.0,1.63639075]
[1753184819428,0.03097556,119210.0,119200.0,1.8345885]
[1753184819623,0.03097556,119210.0,119200.0,1.85714534]
[1753184820022,0.03097556,119210.0,119200.0,1.8345885]
[1753184820227,0.03097556,119210.0,119200.0,1.55592085]
[1753184820524,0.03097556,119210.0,119200.0,1.90184701]
[1753184820921,0.06980556,119210.0,119200.0,2.18051466]
[1753184821228,0.05947556,119210.0,119200.0,1.90184701]
[1753184821428,0.07480556,119210.0,119200.0,1.90184701]
[1753184821726,0.07480556,119210.0,119200.0,1.62317936]
[1753184821923,0.06980556,119210.0,119200.0,1.90184701]
[1753184822227,0.07280556,119210.0,119200.0,2.49632701]
[1753184822418,0.27494656,119210.0,119200.0,1.61562702]
[1753184822619,0.27494656,119210.0,119200.0,1.25876162]
[1753184822620,0.19334556,119210.0,119200.0,1.25876162]
[1753184822824,0.19434556,119210.0,119200.0,1.73428162]
[1753184823019,0.19434556,119210.0,119200.0,2.42304086]
[1753184823224,0.19434556,119210.0,119200.0,2.40050161]
[1753184823432,0.19434556,119210.0,119200.0,2.42303221]
[1753184823633,0.19434556,119210.0,119200.0,2.14436456]
[1753184823820,0.19434556,119210.0,119200.0,2.42303221]
[1753184824026,0.07380556,119210.0,119200.0,1.80498161]
[1753184824221,0.07380556,119210.0,119200.0,2.41333231]
[1753184824631,0.01964556,119210.0,119200.0,2.53268159]
[1753184825032,0.01964556,119210.0,119200.0,2.51016227]
[1753184825528,0.01964556,119210.0,119200.0,3.08522992]
[1753184826435,0.01964556,119210.0,119200.0,3.13027827]
[1753184827027,0.01964556,119210.0,119200.0,2.54294042]
[1753184827532,0.01964556,119210.0,119200.0,3.10027572]
[1753184827733,0.01964556,119210.0,119200.0,3.05513833]
[1753184828034,0.01864556,119210.0,119200.0,3.05513833]
[1753184828534,0.01564556,119210.0,119200.0,2.54376154]
[1753184828734,0.01564556,119210.0,119200.0,3.10109684]
[1753184829232,0.01564556,119210.0,119200.0,3.05613833]
[1753184829428,0.01564556,119210.0,119200.0,3.10108233]
[1753184830035,0.01564556,119210.0,119200.0,3.10498233]
[1753184831230,0.01564556,119210.0,119200.0,2.54764703]
[1753184831432,0.01564556,119210.0,119200.0,3.10498233]
[1753184831735,0.01564556,119210.0,119200.0,3.03772382]
[1753184831937,0.01564556,119210.0,119200.0,2.48038852]
[1753184832131,0.01564556,119210.0,119200.0,3.03772382]
[1753184833234,1.56099,119230.0,119220.0,0.332977]
[1753184833537,1.5,119230.0,119220.0,2.7141781]
[1753184833934,1.56099,119230.0,119220.0,2.7141781]
[1753184834236,1.56099,119230.0,119220.0,2.69172676]
[1753184834629,1.56299,119230.0,119220.0,2.69172676]
[1753184835132,1.56499,119230.0,119220.0,2.69172676]
[1753184835327,1.62133,119230.0,119220.0,2.69212676]
[1753184836836,1.62133,119230.0,119220.0,2.66218681]
[1753184837636,1.62133,119230.0,119220.0,2.66234681]
[1753184838034,1.62133,119230.0,119220.0,2.38367916]
[1753184838233,1.62133,119230.0,119220.0,2.66234681]
[1753184839441,1.62133,119230.0,119220.0,2.38367916]
[1753184839636,1.62133,119230.0,119220.0,2.66234681]
[1753184840436,1.56499,119230.0,119220.0,2.66234681]
[1753184841037,1.62133,119230.0,119220.0,2.66234681]
[1753184841240,1.62133,119230.0,119220.0,2.38375916]
[1753184841437,1.62133,119230.0,119220.0,2.66242681]
[1753184842336,1.62133,119230.0,119220.0,2.38375916]
[1753184842533,1.62133,119230.0,119220.0,2.66242681]
[1753184844740,1.62133,119230.0,119220.0,2.38375916]
[1753184844946,1.62133,119230.0,119220.0,2.66242681]
[1753184846436,1.61933,119230.0,119220.0,2.38375916]
[1753184846641,1.61933,119230.0,119220.0,2.66242681]
[1753184846839,1.56299,119230.0,119220.0,2.66242681]
[1753184849657,1.502,119230.0,119220.0,2.68577006]
[1753184850150,1.502,119230.0,119220.0,2.74574614]
[1753184850350,1.54447,119230.0,119220.0,2.74574614]
[1753184850545,1.54447,119230.0,119220.0,2.68577006]
[1753184850741,1.56299,119230.0,119220.0,2.68577006]
[1753184851251,1.56299,119230.0,119220.0,2.08329006]
[1753184851450,1.56299,119230.0,119220.0,2.68605006]
[1753184852349,1.56299,119230.0,119220.0,2.76102046]
[1753184852745,1.56299,119230.0,119220.0,1.87959281]
[1753184853053,1.56299,119230.0,119220.0,2.73858978]
[1753184853253,1.54447,119230.0,119220.0,2.73858978]
[1753184853449,1.54447,119230.0,119220.0,2.7160899]
[1753184854659,1.502,119230.0,119220.0,2.7160899]
[1753184855355,1e-07,119230.0,119220.0,2.73108983]
[1753184856357,0.11753,119240.0,119230.0,0.241673]
[1753184856554,0.11733,119240.0,119230.0,1.96482389]
[1753184856859,0.11733,119240.0,119230.0,2.05280887]
[1753184857051,0.08726,119250.0,119240.0,0.243879]
[1753184857352,0.08706,119250.0,119240.0,1.70231927]
[1753184857748,0.08706,119250.0,119240.0,2.30487927]
[1753184857950,0.13415,119260.0,119250.0,0.2438649]
[1753184858154,0.13395,119260.0,119250.0,1.72592189]
[1753184858857,0.13395,119260.0,119250.0,1.7034158]
[1753184859051,0.19494,119260.0,119250.0,1.7034158]
[1753184859251,0.19494,119260.0,119250.0,1.42474815]
[1753184859453,0.19494,119260.0,119250.0,2.3059358]
[1753184859661,0.19494,119260.0,119250.0,2.3059619]
[1753184860557,0.19794,119260.0,119250.0,2.3059619]
[1753184860754,0.19794,119260.0,119250.0,2.02729425]
[1753184860961,0.19794,119260.0,119250.0,2.3059619]
[1753184861553,0.19794,119260.0,119250.0,2.2584604]
[1753184862060,0.19794,119260.0,119250.0,1.97979275]
[1753184862261,0.19794,119260.0,119250.0,2.2584604]
[1753184863162,0.19794,119260.0,119250.0,2.2359619]
[1753184863659,0.19794,119260.0,119250.0,2.29596159]
[1753184864160,0.19794,119260.0,119250.0,2.01729394]
[1753184864365,0.19794,119260.0,119250.0,2.2359619]
[1753184864567,0.19794,119260.0,119250.0,2.01729394]
[1753184865065,0.19794,119260.0,119250.0,2.2359619]
[1753184865656,0.19794,119260.0,119250.0,2.01729394]
[1753184865858,0.19794,119260.0,119250.0,2.29596159]
[1753184866566,0.19694,119260.0,119250.0,2.29596159]
[1753184866763,0.19694,119260.0,119250.0,2.2359619]
[1753184868059,0.19794,119260.0,119250.0,2.2359619]
[1753184868258,0.19794,119260.0,119250.0,2.29596159]
[1753184869365,0.09471,119260.0,119250.0,2.2359619]
[1753184869563,0.003,119260.0,119250.0,2.38407055]
[1753184870268,0.003,119260.0,119250.0,3.54379055]
[1753184870467,1.58133,119270.0,119260.0,0.2370909]
[1753184870769,1.58113,119270.0,119260.0,1.40775915]
[1753184871865,1.62551,119270.0,119260.0,1.40775915]
[1753184872765,1.62651,119270.0,119260.0,1.40775915]
[1753184873762,1.3810996,119270.0,119260.0,1.70415915]
[1753184873966,1.5056096,119270.0,119260.0,2.52800061]
[1753184874472,1.5046096,119270.0,119260.0,2.46832092]
[1753184874972,1.5046096,119270.0,119260.0,2.18965327]
[1753184875169,1.5046096,119270.0,119260.0,2.46832092]
[1753184875370,1.5046096,119270.0,119260.0,2.52932061]
[1753184875869,1.5036096,119270.0,119260.0,2.53032061]
[1753184876267,1.3790996,119270.0,119260.0,2.53032061]
[1753184876969,1.3790996,119270.0,119260.0,1.92644061]
[1753184877164,1.5036096,119270.0,119260.0,2.53088061]
[1753184879176,1.5036096,119270.0,119260.0,2.53188061]
[1753184881276,1.3971196,119270.0,119260.0,2.53188061]
[1753184881577,1.3790996,119270.0,119260.0,2.53188061]
[1753184882785,1.3790996,119270.0,119260.0,2.25321296]
[1753184882983,1.3971196,119270.0,119260.0,2.47188092]
[1753184883283,1.5036096,119270.0,119260.0,2.19321327]
[1753184883481,1.5036096,119270.0,119260.0,1.58877327]
[1753184883684,1.5036096,119270.0,119260.0,2.47212092]
[1753184883984,1.5036096,119270.0,119260.0,2.44212092]
[1753184884181,1.5036096,119270.0,119260.0,1.83744092]
[1753184884375,1.5036096,119270.0,119260.0,2.44212092]
[1753184884684,1.5036096,119270.0,119260.0,2.44208092]
[1753184886184,1.5036096,119270.0,119260.0,2.16341327]
[1753184886377,1.5036096,119270.0,119260.0,2.44208092]
[1753184886577,1.5036096,119270.0,119260.0,2.44204092]
[1753184887890,1.5036096,119270.0,119260.0,2.16337327]
[1753184888079,1.5036096,119270.0,119260.0,2.44204092]
[1753184889087,1.5036096,119270.0,119260.0,1.83744092]
[1753184889286,1.5036096,119270.0,119260.0,2.44568092]
[1753184890492,1.5036096,119270.0,119260.0,2.44560092]
[1753184890684,1.5036096,119270.0,119260.0,1.50843061]
[1753184890886,1.5036096,119270.0,119260.0,1.9535115]
[1753184891092,1.5036096,119270.0,119260.0,2.23217915]
[1753184891487,1.5036096,119270.0,119260.0,2.30718955]
[1753184891687,1.5036096,119270.0,119260.0,2.23221915]
[1753184892189,1.5036096,119270.0,119260.0,2.29223593]
[1753184892585,1.5036096,119270.0,119260.0,1.30953593]
[1753184892786,1.5036096,119270.0,119260.0,1.91725593]
[1753184893394,1.5036096,119270.0,119260.0,1.30953593]
[1753184893592,1.5036096,119270.0,119260.0,1.41571593]
[1753184893986,1.5036096,119270.0,119260.0,2.02307593]
[1753184894786,1.5036096,119270.0,119260.0,1.63822828]
[1753184894991,1.5036096,119270.0,119260.0,1.91689593]
[1753184895198,1.5036096,119270.0,119260.0,1.30953593]
[1753184895386,1.5036096,119270.0,119260.0,1.91689593]
[1753184896998,1.5036096,119270.0,119260.0,2.02307593]
[1753184897594,1.5036096,119270.0,119260.0,1.96305915]
[1753184898596,1.5036096,119270.0,119260.0,1.6843915]
[1753184898895,1.5036096,119270.0,119260.0,1.96305915]
[1753184899499,1.5036096,119270.0,119260.0,1.35569915]
[1753184899799,1.5036096,119270.0,119260.0,1.96269915]
[1753184900196,1.5036096,119270.0,119260.0,1.98134915]
[1753184900601,1.5036096,119270.0,119260.0,1.6840315]
[1753184900800,1.5036096,119270.0,119260.0,1.96269915]
[1753184900998,1.5036096,119270.0,119260.0,1.37434915]
[1753184901203,1.5036096,119270.0,119260.0,1.98110915]
[1753184901599,1.5036096,119270.0,119260.0,1.98126915]
[1753184902890,1.5036096,119270.0,119260.0,1.98122915]
[1753184903102,1.5036096,119270.0,119260.0,1.96257915]
[1753184903303,1.6712064,119270.0,119260.0,1.96241497]
[1753184903503,1.5036096,119270.0,119260.0,1.68374732]
[1753184903700,1.5036096,119270.0,119260.0,1.96241497]
[1753184903998,0.20522,119270.0,119260.0,1.96241497]
[1753184904192,0.20522,119270.0,119260.0,1.96249497]
[1753184904393,0.20522,119270.0,119260.0,1.35553497]
[1753184904599,0.20522,119270.0,119260.0,1.96241497]
[1753184904794,0.3728168,119270.0,119260.0,1.85623497]
[1753184905101,0.3728168,119270.0,119260.0,1.62239161]
[1753184907201,0.3728168,119270.0,119260.0,1.62203161]
[1753184909107,0.3728168,119270.0,119260.0,1.72821161]
[1753184909303,0.20522,119270.0,119260.0,1.90069926]
[1753184909500,0.3728168,119270.0,119260.0,1.90069926]
[1753184909901,0.3728168,119270.0,119260.0,1.90069367]
[1753184910198,0.3728168,119270.0,119260.0,1.96181497]
[1753184910702,0.20522,119270.0,119260.0,1.98046497]
[1753184911096,0.20522,119270.0,119260.0,1.70179732]
[1753184911297,0.20522,119270.0,119260.0,1.98046497]
[1753184912504,0.20522,119270.0,119260.0,1.70179732]
[1753184912706,0.20522,119270.0,119260.0,1.98046497]
[1753184913101,0.20522,119270.0,119260.0,2.04054268]
[1753184913303,0.20522,119270.0,119260.0,1.76187503]
[1753184913502,0.20522,119270.0,119260.0,2.04054268]
[1753184913702,0.20522,119270.0,119260.0,2.33694268]
[1753184914804,0.20522,119270.0,119260.0,1.45199503]
[1753184915104,0.20522,119270.0,119260.0,1.73066268]
[1753184915310,0.20522,119270.0,119260.0,1.71201268]
[1753184915505,0.3728168,119270.0,119260.0,1.94448503]
[1753184915811,0.65148445,119270.0,119260.0,1.26708732]
[1753184916106,0.65148445,119270.0,119260.0,1.88432732]
[1753184918412,0.3728168,119270.0,119260.0,1.88432732]
[1753184918611,0.65148445,119270.0,119260.0,1.88432732]
[1753184919013,0.3728168,119270.0,119260.0,1.88432732]
[1753184919617,0.3728168,119270.0,119260.0,1.58792732]
[1753184919816,0.65148445,119270.0,119260.0,1.58792732]
[1753184920020,0.3728168,119270.0,119260.0,1.63300594]
[1753184922324,0.65148445,119270.0,119260.0,1.63300594]
[1753184922523,0.3728168,119270.0,119260.0,1.63300594]
[1753184923023,0.65148445,119270.0,119260.0,0.64068732]
[1753184923224,0.65148445,119270.0,119260.0,1.38604732]
[1753184923427,0.3728168,119270.0,119260.0,1.38604732]
[1753184923823,0.65148445,119270.0,119260.0,1.38604732]
[1753184924123,0.3728168,119270.0,119260.0,1.38604732]
[1753184924324,0.3728168,119270.0,119260.0,1.43113238]
[1753184924823,0.65148445,119270.0,119260.0,1.43113238]
[1753184925725,0.3728168,119270.0,119260.0,1.43113238]
[1753184925926,0.65148445,119270.0,119260.0,1.43113238]
[1753184927128,1.06918045,119270.0,119260.0,0.64832566]
[1753184927427,1.06918045,119270.0,119260.0,0.74748215]
[1753184928119,0.81918045,119270.0,119260.0,0.74748215]
[1753184929535,0.81918045,119270.0,119260.0,0.77779215]
[1753184929724,0.5405128,119270.0,119260.0,0.92439215]
[1753184929924,0.5405128,119270.0,119260.0,0.93314215]
[1753184930930,0.5405128,119270.0,119260.0,1.54642215]
[1753184931129,0.81918045,119270.0,119260.0,1.54642215]
[1753184931332,0.81918045,119270.0,119260.0,0.93314215]
[1753184931527,0.81918045,119270.0,119260.0,1.54642215]
[1753184931734,0.81918045,119270.0,119260.0,1.61479025]
[1753184932827,0.65148445,119270.0,119260.0,1.63236025]
[1753184933034,0.3728168,119270.0,119260.0,1.9110279]
[1753184933836,0.3728168,119270.0,119260.0,1.63236025]
[1753184934129,0.16464,119270.0,119260.0,1.9110279]
[1753184934329,0.05815,119270.0,119260.0,2.1210279]
[1753184934629,0.46819261,119280.0,119270.0,0.3532568]
[1753184934833,0.46799261,119280.0,119270.0,1.06362945]
[1753184935034,0.4510944,119280.0,119270.0,1.06362945]
[1753184935333,0.4510944,119280.0,119270.0,0.7849618]
[1753184935534,0.4510944,119280.0,119270.0,1.06362945]
[1753184935836,0.46775677,119280.0,119270.0,0.7849618]
[1753184936230,0.46775677,119280.0,119270.0,0.7859618]
[1753184937035,0.46775677,119280.0,119270.0,0.7869618]
[1753184938832,0.46775677,119280.0,119270.0,0.79544957]
[1753184939632,0.38395507,119280.0,119270.0,1.07411722]
[1753184940137,0.38395507,119280.0,119270.0,1.68699722]
[1753184940331,0.38395507,119280.0,119270.0,0.75691617]
[1753184940537,0.66262272,119280.0,119270.0,1.38216216]
[1753184940739,0.66262272,119280.0,119270.0,1.02112216]
[1753184941138,0.38395507,119280.0,119270.0,1.02112216]
[1753184941437,0.38395507,119280.0,119270.0,1.02012216]
[1753184941633,0.38395507,119280.0,119270.0,1.01912216]
[1753184941837,0.38395507,119280.0,119270.0,1.01934938]
[1753184942141,0.38395507,119280.0,119270.0,1.03691938]
[1753184942339,0.38395507,119280.0,119270.0,1.03692511]
[1753184943138,0.66262272,119280.0,119270.0,1.02940977]
[1753184946945,1.02342272,119280.0,119270.0,0.89724977]
[1753184947338,1.02342272,119280.0,119270.0,1.01183977]
[1753184948443,1.02342272,119280.0,119270.0,0.39931977]
[1753184948643,1.02342272,119280.0,119270.0,1.01107977]
[1753184949045,1.02342272,119280.0,119270.0,0.24396977]
[1753184949246,1.02342272,119280.0,119270.0,1.00164977]
[1753184950440,1.02342272,119280.0,119270.0,1.01987977]
[1753184950745,1.02342272,119280.0,119270.0,0.41789977]
[1753184950945,1.02342272,119280.0,119270.0,1.02877977]
[1753184952442,1.02342272,119280.0,119270.0,1.01054977]
[1753184952748,1.02342272,119280.0,119270.0,0.04606297]
[1753184953140,1.02342272,119280.0,119270.0,0.05357831]
[1753184953455,1.02342272,119280.0,119270.0,0.22117511]
[1753184953639,0.7280927,119280.0,119270.0,0.22117511]
[1753184953835,0.64596035,119280.0,119270.0,0.39914511]
[1753184954049,0.64596035,119280.0,119270.0,0.39916912]
[1753184954542,0.3672927,119280.0,119270.0,0.39916912]
[1753184954737,0.64596035,119280.0,119270.0,0.39916912]
[1753184955448,0.64596035,119280.0,119270.0,0.41416212]
[1753184955948,1.09121765,119280.0,119270.0,0.36908339]
[1753184956148,1.09121765,119280.0,119270.0,0.38731339]
[1753184956344,1.09121765,119280.0,119270.0,0.79319212]
[1753184956650,0.47837765,119280.0,119270.0,0.79319212]
[1753184956849,0.47837765,119280.0,119270.0,1.40527212]
[1753184957245,0.64596035,119280.0,119270.0,1.36019339]
[1753184957442,0.64596035,119280.0,119270.0,1.36107339]
[1753184957845,0.3672927,119280.0,119270.0,1.36207339]
[1753184958040,0.64596035,119280.0,119270.0,1.36207339]
[1753184959454,0.3672927,119280.0,119270.0,1.36207339]
[1753184959653,0.64596035,119280.0,119270.0,1.36207339]
[1753184959957,0.3672927,119280.0,119270.0,1.36207339]
[1753184960146,0.64596035,119280.0,119270.0,1.36207339]
[1753184960453,0.3672927,119280.0,119270.0,1.40715212]
[1753184962549,0.3672806,119280.0,119270.0,1.40715212]
[1753184962854,0.64594825,119280.0,119270.0,1.40715212]
[1753184963849,0.3672806,119280.0,119270.0,1.40715212]
[1753184967358,0.64594825,119280.0,119270.0,1.40715212]
[1753184967956,0.3672806,119280.0,119270.0,1.40715212]
[1753184969158,0.57612706,119280.0,119270.0,1.61599858]
[1753184969558,0.3672806,119280.0,119270.0,1.61599858]
[1753184969759,0.57612706,119280.0,119270.0,1.61599858]
[1753184970160,0.78497352,119280.0,119270.0,1.61599858]
[1753184971263,0.57612706,119280.0,119270.0,1.40715212]
[1753184971455,0.57612706,119280.0,119270.0,1.61599858]
[1753184971759,0.78497352,119280.0,119270.0,1.61599858]
[1753184972261,0.57612706,119280.0,119270.0,1.61599858]
[1753184973055,0.57612706,119280.0,119270.0,1.40715212]
[1753184973256,0.78497352,119280.0,119270.0,1.40715212]
[1753184973456,0.57612706,119280.0,119270.0,1.61599858]
[1753184973857,0.43413706,119280.0,119270.0,1.61599858]
[1753184974057,0.36750436,119280.0,119270.0,1.61599858]
[1753184974256,0.36750436,119280.0,119270.0,1.40715212]
[1753184974465,0.53508706,119280.0,119270.0,1.61599858]
[1753184974761,0.57470706,119280.0,119270.0,1.61599858]
[1753184975764,0.57470706,119280.0,119270.0,1.61251858]
[1753184976057,0.40712436,119280.0,119270.0,1.40367212]
[1753184976263,0.57470706,119280.0,119270.0,1.61251858]
[1753184976463,0.40712436,119280.0,119270.0,1.61251858]
[1753184977464,0.1982779,119280.0,119270.0,1.61251858]
[1753184977665,0.40712436,119280.0,119270.0,1.61251858]
[1753184977864,0.40712436,119280.0,119270.0,1.40367212]
[1753184978261,0.40712436,119280.0,119270.0,1.61251858]